fUSD/lending_fUSD_20250826
["ID","MTS","AMOUNT","RATE_DAILY","PERIOD"]
[381509296,1756241487309,-774.37,0.00027397,5]
[381509297,1756241487318,-903.93,0.00027397,5]
[381509298,1756241487327,-400.0,0.00027397,5]
[381509299,1756241487337,-457.43,0.00027397,5]
[381509300,1756241487346,-400.16524161,0.00027397,5]
[381509301,1756241487355,-660.24,0.00027397,5]
[381509302,1756241487366,-760.06,0.00027397,5]
[381509303,1756241487375,-1019.09,0.00027397,5]
[381509304,1756241487384,-400.0,0.00027397,5]
[381509305,1756241487393,-857.32,0.00027397,5]
[381509306,1756241487402,-1221.96,0.00027397,5]
[381509307,1756241487411,-400.63738882,0.00027397,5]
[381509308,1756241487420,-545.29,0.00027397,5]
[381509309,1756241487429,-400.0,0.00027397,5]
[381509310,1756241487438,-400.0,0.00027397,5]
[381509311,1756241487447,-490.0,0.00027397,5]
[381509312,1756241487456,-400.40694838,0.00027397,5]
[381509313,1756241487466,-555.98,0.00027397,5]
[381509314,1756241487478,-555.98,0.00027397,5]
[381509315,1756241487487,-400.0,0.00027397,5]
[381509316,1756241487497,-555.98,0.00027397,5]
[381509317,1756241487507,-400.0,0.00027397,5]
[381509318,1756241487518,-555.98,0.00027397,5]
[381509319,1756241487530,-555.98,0.00027397,5]
[381509320,1756241487540,-1182.93,0.00027397,5]
[381509321,1756241487549,-555.98,0.00027397,5]
[381509322,1756241487559,-1248.35,0.00027397,5]
[381509323,1756241487569,-555.98,0.00027397,5]
[381509324,1756241487578,-555.98,0.00027397,5]
[381509325,1756241487587,-555.98,0.00027397,5]
[381509326,1756241487596,-400.0,0.00027397,5]
[381509327,1756241487606,-555.98,0.00027397,5]
[381509328,1756241487615,-400.0,0.00027397,5]
[381509329,1756241487624,-555.98,0.00027397,5]
[381509330,1756241487634,-659.25,0.00027397,5]
[381509331,1756241487648,-400.0,0.00027397,5]
[381509332,1756241487660,-555.98,0.00027397,5]
[381509333,1756241487669,-555.98,0.00027397,5]
[381509334,1756241487678,-555.98,0.00027397,5]
[381509335,1756241487688,-400.0,0.00027397,5]
[381509336,1756241487698,-555.98,0.00027397,5]
[381509337,1756241487707,-555.98,0.00027397,5]
[381509338,1756241487716,-555.98,0.00027397,5]
[381509339,1756241487726,-555.98,0.00027397,5]
[381509340,1756241487736,-452.79,0.00027397,5]
[381509341,1756241487745,-555.98,0.00027397,5]
[381509342,1756241487755,-1007.13,0.00027397,5]
[381509343,1756241487764,-555.98,0.00027397,5]
[381509344,1756241487774,-878.29,0.00027397,5]
[381509345,1756241487783,-400.0,0.00027397,5]
[381509346,1756241487793,-481.02,0.00027397,5]
[381509347,1756241487804,-555.98,0.00027397,5]
[381509348,1756241487814,-555.98,0.00027397,5]
[381509349,1756241487824,-555.98,0.00027397,5]
[381509350,1756241487834,-555.99366637,0.00027397,5]
[381509351,1756241487843,-644.55,0.00027397,5]
[381509352,1756241487853,-1036.94,0.00027397,5]
[381509353,1756241487862,-400.0,0.00027397,5]
[381509354,1756241487872,-528.32,0.00027397,5]
[381509355,1756241487881,-686.45,0.00027397,5]
[381509356,1756241487890,-867.32,0.00027397,5]
[381509357,1756241487899,-632.56,0.00027397,5]
[381509358,1756241487908,-926.4,0.00027397,5]
[381509359,1756241487918,-400.0,0.00027397,5]
[381509360,1756241487927,-501.45478859,0.00027397,5]
[381509361,1756241487937,-1122.11,0.00027397,5]
[381509362,1756241487946,-400.0,0.00027397,5]
[381509363,1756241487956,-400.0,0.00027397,5]
[381509364,1756241487965,-400.0,0.00027397,5]
[381509365,1756241487974,-562.25,0.00027397,5]
[381509366,1756241487983,-400.0,0.00027397,5]
[381509367,1756241487992,-1668.68,0.00027397,5]
[381509368,1756241488002,-722.62,0.00027397,5]
[381509369,1756241488011,-400.0,0.00027397,5]
[381509370,1756241488020,-400.81796741,0.00027397,5]
[381509371,1756241488031,-620.61,0.00027397,5]
[381509372,1756241488040,-400.0,0.00027397,5]
[381509373,1756241488050,-697.31,0.00027397,5]
[381509374,1756241488059,-400.0,0.00027397,5]
[381509375,1756241488069,-490.0,0.00027397,5]
[381509376,1756241488078,-490.0,0.00027397,5]
[381509377,1756241488087,-400.0,0.00027397,5]
[381509378,1756241488096,-557.44,0.00027397,5]
[381509379,1756241488105,-405.49,0.00027397,5]
[381509380,1756241488114,-653.23,0.00027397,5]
[381509381,1756241488124,-639.1,0.00027397,5]
[381509382,1756241488134,-400.0,0.00027397,5]
[381509383,1756241488143,-400.0,0.00027397,5]
[381509384,1756241488152,-446.38,0.00027397,5]
[381509385,1756241488162,-655.37,0.00027397,5]
[381509386,1756241488171,-918.96,0.00027397,5]
[381509387,1756241488181,-674.78,0.00027397,5]
[381509388,1756241488190,-400.0,0.00027397,5]
[381509389,1756241488199,-861.82,0.00027397,5]
[381509390,1756241488209,-400.0,0.00027397,5]
[381509391,1756241488218,-761.79,0.00027397,5]
[381509392,1756241488227,-400.0,0.00027397,5]
[381509393,1756241488236,-400.0,0.00027397,5]
[381509394,1756241488245,-463.36,0.00027397,5]
[381509395,1756241488254,-664.31,0.00027397,5]
[381509396,1756241488264,-648.27,0.00027397,5]
[381509397,1756241488273,-400.0,0.00027397,5]
[381509398,1756241488284,-400.0,0.00027397,5]
[381509399,1756241488293,-931.51,0.00027397,5]
[381509400,1756241488304,-1214.43,0.00027397,5]
[381509401,1756241488313,-832.09,0.00027397,5]
[381509402,1756241488323,-1143.51,0.00027397,5]
[381509403,1756241488332,-418.56,0.00027397,5]
[381509404,1756241488342,-400.0,0.00027397,5]
[381509405,1756241488351,-1162.39,0.00027397,5]
[381509406,1756241488361,-638.2,0.00027397,5]
[381509407,1756241488370,-436.72,0.00027397,5]
[381509408,1756241488379,-400.0,0.00027397,5]
[381509409,1756241488389,-400.0,0.00027397,5]
[381509410,1756241488399,-400.0,0.00027397,5]
[381509411,1756241488408,-400.0,0.00027397,5]
[381509412,1756241488417,-400.0,0.00027397,5]
[381509413,1756241488426,-499.96,0.00027397,5]
[381509414,1756241488435,-737.35,0.00027397,5]
[381509415,1756241488444,-498.17468982,0.00027397,5]
[381509416,1756241488453,-1172.73,0.00027397,5]
[381509417,1756241488463,-400.0,0.00027397,5]
[381509418,1756241488472,-400.0,0.00027397,5]
[381509419,1756241488482,-1117.4,0.00027397,5]
[381509420,1756241488491,-400.0,0.00027397,5]
[381509421,1756241488501,-664.56,0.00027397,5]
[381509422,1756241488510,-400.0,0.00027397,5]
[381509423,1756241488519,-496.96,0.00027397,5]
[381509424,1756241488529,-1100.12,0.00027397,5]
[381509425,1756241488538,-653.72,0.00027397,5]
[381509426,1756241488548,-1446.06,0.00027397,5]
[381509427,1756241488560,-490.0,0.00027397,5]
[381509428,1756241488569,-969.98,0.00027397,5]
[381509429,1756241488579,-442.74,0.00027397,5]
[381509430,1756241488588,-574.95,0.00027397,5]
[381509431,1756241488597,-853.57,0.00027397,5]
[381509432,1756241488607,-400.0,0.00027397,5]
[381509433,1756241488616,-1125.75,0.00027397,5]
[381509434,1756241488626,-685.63,0.00027397,5]
[381509435,1756241488636,-998.74,0.00027397,5]
[381509436,1756241488650,-404.72,0.00027397,5]
[381509437,1756241488659,-400.0,0.00027397,5]
[381509438,1756241488668,-400.0,0.00027397,5]
[381509439,1756241488678,-1180.35,0.00027397,5]
[381509440,1756241488689,-1189.66,0.00027397,5]
[381509441,1756241488698,-400.0,0.00027397,5]
[381509442,1756241488708,-859.33,0.00027397,5]
[381509443,1756241488717,-400.0,0.00027397,5]
[381509444,1756241488727,-1051.92,0.00027397,5]
[381509445,1756241488738,-400.0,0.00027397,5]
[381509446,1756241488747,-817.45,0.00027397,5]
[381509447,1756241488758,-792.85,0.00027397,5]
[381509448,1756241488767,-808.08,0.00027397,5]
[381509449,1756241488777,-400.0,0.00027397,5]
[381509450,1756241488787,-661.89,0.00027397,5]
[381509451,1756241488797,-490.0,0.00027397,5]
[381509452,1756241488810,-460.69121376,0.00027397,5]
[381509453,1756241488820,-400.0,0.00027397,5]
[381509454,1756241488830,-400.0,0.00027397,5]
[381509455,1756241488840,-446.02,0.00027397,5]
[381509456,1756241488850,-954.2,0.00027397,5]
[381509457,1756241488859,-1152.14,0.00027397,5]
[381509458,1756241488869,-685.86,0.00027397,5]
[381509459,1756241488879,-400.0,0.00027397,5]
[381509460,1756241488889,-400.0,0.00027397,5]
[381509461,1756241488898,-400.0,0.00027397,5]
[381509462,1756241488907,-6344.64,0.00027397,5]
[381509463,1756241488917,-1598.25,0.00027397,5]
[381509464,1756241488926,-818.38,0.00027397,5]
[381509465,1756241488935,-842.79,0.00027397,5]
[381509466,1756241488944,-710.54,0.00027397,5]
[381509467,1756241488953,-500.0,0.00027397,5]
[381509468,1756241488963,-500.0,0.00027397,5]
[381509469,1756241488972,-500.0,0.00027397,5]
[381509470,1756241488981,-500.0,0.00027397,5]
[381509471,1756241488990,-500.0,0.00027397,5]
[381509472,1756241489000,-500.0,0.00027397,5]
[381509473,1756241489009,-400.0,0.00027397,5]
[381509474,1756241489018,-500.0,0.00027397,5]
[381509475,1756241489027,-500.0,0.00027397,5]
[381509476,1756241489037,-500.0,0.00027397,5]
[381509477,1756241489047,-400.0,0.00027397,5]
[381509478,1756241489057,-500.0,0.00027397,5]
[381509479,1756241489067,-1350.24,0.00027397,5]
[381509480,1756241489076,-500.0,0.00027397,5]
[381509481,1756241489085,-545.69,0.00027397,5]
[381509482,1756241489095,-500.0,0.00027397,5]
[381509483,1756241489104,-500.0,0.00027397,5]
[381509484,1756241489114,-438.67,0.00027397,5]
[381509485,1756241489123,-500.0,0.00027397,5]
[381509486,1756241489132,-500.0,0.00027397,5]
[381509487,1756241489141,-195.47744747,0.00027397,5]
[381509488,1756241489150,-639.919567,0.00027397,5]
[381509489,1756241489160,-400.0,0.00027397,5]
[381509490,1756241489169,-278.76125069,0.00027397,5]
[381509491,1756241489178,-400.0,0.00027397,5]
[381509492,1756241489188,-892.98,0.00027397,5]
[381509493,1756241489197,-580.34,0.00027397,5]
[381509494,1756241489207,-1340.92,0.00027397,5]
[381509495,1756241489216,-400.0,0.00027397,5]
[381509496,1756241489225,-766.9,0.00027397,5]
[381509497,1756241489235,-1148.05,0.00027397,5]
[381509498,1756241489244,-548.93,0.00027397,5]
[381509499,1756241489253,-490.77016748,0.00027397,5]
[381509500,1756241489263,-2369.71,0.00027397,5]
[381509501,1756241489272,-400.0,0.00027397,5]
[381509502,1756241489281,-400.0,0.00027397,5]
[381509503,1756241489290,-400.0,0.00027397,5]
[381509504,1756241489301,-1094.01,0.00027397,5]
[381509505,1756241489310,-1019.5,0.00027397,5]
[381509506,1756241489320,-796.25,0.00027397,5]
[381509507,1756241489330,-400.0,0.00027397,5]
[381509508,1756241489340,-976.55,0.00027397,5]
[381509509,1756241489349,-688.8,0.00027397,5]
[381509510,1756241489596,-400.0,0.00027397,5]
[381509511,1756241489614,-1033.03,0.00027397,5]
[381509512,1756241489623,-555.58,0.00027397,5]
[381509513,1756241489632,-400.0,0.00027397,5]
[381509514,1756241489642,-490.0,0.00027397,5]
[381509515,1756241489654,-490.0,0.00027397,5]
[381509516,1756241489663,-490.0,0.00027397,5]
[381509517,1756241489674,-490.0,0.00027397,5]
[381509518,1756241489683,-490.0,0.00027397,5]
[381509519,1756241489693,-1212.21,0.00027397,5]
[381509520,1756241489703,-400.0,0.00027397,5]
[381509521,1756241489712,-400.0,0.00027397,5]
[381509522,1756241489721,-871.26,0.00027397,5]
[381509523,1756241489733,-1165.16,0.00027397,5]
[381509524,1756241489743,-698.17,0.00027397,5]
[381509525,1756241489753,-400.0,0.00027397,5]
[381509526,1756241489762,-674.94,0.00027397,5]
[381509527,1756241489771,-593.55,0.00027397,5]
[381509528,1756241489780,-986.96,0.00027397,5]
[381509529,1756241489789,-400.0,0.00027397,5]
[381509530,1756241489799,-1055.46,0.00027397,5]
[381509531,1756241489808,-400.0,0.00027397,5]
[381509532,1756241489817,-735.78,0.00027397,5]
[381509533,1756241489826,-1181.7,0.00027397,5]
[381509534,1756241489835,-758.31,0.00027397,5]
[381509535,1756241489845,-535.63,0.00027397,5]
[381509536,1756241489855,-400.0,0.00027397,5]
[381509537,1756241489864,-400.0,0.00027397,5]
[381509538,1756241489874,-400.0,0.00027397,5]
[381509539,1756241489883,-400.0,0.00027397,5]
[381509540,1756241489892,-400.0,0.00027397,5]
[381509541,1756241489902,-400.0,0.00027397,5]
[381509542,1756241489911,-635.54,0.00027397,5]
[381509543,1756241489921,-400.0,0.00027397,5]
[381509544,1756241489930,-400.0,0.00027397,5]
[381509545,1756241489940,-1082.46,0.00027397,5]
[381509546,1756241489949,-1126.33,0.00027397,5]
[381509547,1756241489959,-400.0,0.00027397,5]
[381509548,1756241489967,-400.0,0.00027397,5]
[381509549,1756241489977,-490.0,0.00027397,5]
[381509550,1756241489986,-490.0,0.00027397,5]
[381509551,1756241489996,-400.0,0.00027397,5]
[381509552,1756241490006,-899.9,0.00027397,5]
[381509553,1756241490015,-400.0,0.00027397,5]
[381509554,1756241490025,-588.79,0.00027397,5]
[381509555,1756241490035,-837.57,0.00027397,5]
[381509556,1756241490044,-1505.36,0.00027397,5]
[381509557,1756241490054,-977.39,0.00027397,5]
[381509558,1756241490063,-496.25,0.00027397,5]
[381509559,1756241490074,-400.0,0.00027397,5]
[381509560,1756241490084,-1267.76,0.00027397,5]
[381509561,1756241490093,-400.0,0.00027397,5]
[381509562,1756241490104,-597.34,0.00027397,5]
[381509563,1756241490114,-697.55,0.00027397,5]
[381509564,1756241490124,-400.0,0.00027397,5]
[381509565,1756241490135,-1188.43,0.00027397,5]
[381509566,1756241490145,-496.47,0.00027397,5]
[381509567,1756241490155,-858.27,0.00027397,5]
[381509568,1756241490164,-400.0,0.00027397,5]
[381509569,1756241490174,-275.0010199,0.00027397,5]
[381509570,1756241490183,-400.0,0.00027397,5]
[381509571,1756241490193,-400.0,0.00027397,5]
[381509572,1756241490203,-1226.97,0.00027397,5]
[381509573,1756241490212,-1135.85,0.00027397,5]
[381509574,1756241490222,-906.3,0.00027397,5]
[381509575,1756241490231,-500.0,0.00027397,7]
[381509576,1756241490242,-4387.96,0.00027397,5]
[381509577,1756241490251,-1304.68,0.00027397,5]
[381509578,1756241490261,-400.0,0.00027397,5]
[381509579,1756241490270,-400.0,0.00027397,5]
[381509580,1756241490280,-636.55,0.00027397,5]
[381509581,1756241490289,-619.08,0.00027397,5]
[381509582,1756241490299,-400.0,0.00027397,5]
[381509583,1756241490308,-400.0,0.00027397,5]
[381509584,1756241490318,-601.26,0.00027397,5]
[381509585,1756241490327,-400.0,0.00027397,5]
[381509586,1756241490337,-400.0,0.00027397,5]
[381509587,1756241490346,-400.0,0.00027397,5]
[381509588,1756241490355,-400.0,0.00027397,5]
[381509589,1756241490364,-497.95,0.00027397,5]
[381509590,1756241490373,-1282.75,0.00027397,5]
[381509591,1756241490383,-653.61,0.00027397,5]
[381509592,1756241490392,-400.0,0.00027397,5]
[381509593,1756241490401,-1224.95,0.00027397,5]
[381509594,1756241490411,-400.0,0.00027397,5]
[381509595,1756241490420,-400.0,0.00027397,5]
[381509596,1756241490429,-400.0,0.00027397,5]
[381509597,1756241490438,-400.0,0.00027397,5]
[381509598,1756241490447,-400.0,0.00027397,5]
[381509599,1756241490456,-400.0,0.00027397,5]
[381509600,1756241490466,-400.0,0.00027397,5]
[381509601,1756241490475,-527.3,0.00027397,5]
[381509602,1756241490484,-619.94,0.00027397,5]
[381509603,1756241490494,-400.0,0.00027397,5]
[381509604,1756241490503,-1293.54,0.00027397,5]
[381509605,1756241490512,-970.12,0.00027397,5]
[381509606,1756241490522,-400.0,0.00027397,5]
[381509607,1756241490531,-400.0,0.00027397,5]
[381509608,1756241490540,-1322.59,0.00027397,5]
[381509609,1756241490549,-1316.73,0.00027397,5]
[381509610,1756241490559,-616.8,0.00027397,5]
[381509611,1756241490568,-400.0,0.00027397,5]
[381509612,1756241490577,-400.0,0.00027397,5]
[381509613,1756241490586,-491.83481669,0.00027397,5]
[381509614,1756241490595,-775.17,0.00027397,5]
[381509615,1756241490604,-916.29,0.00027397,5]
[381509616,1756241490615,-524.59010865,0.00027397,5]
[381509617,1756241490624,-1461.88,0.00027397,5]
[381509618,1756241490633,-746.08,0.00027397,5]
[381509619,1756241490644,-400.0,0.00027397,5]
[381509620,1756241490656,-527.97,0.00027397,5]
[381509621,1756241490666,-919.25,0.00027397,5]
[381509622,1756241490675,-710.46,0.00027397,5]
[381509623,1756241490685,-400.0,0.00027397,5]
[381509624,1756241490694,-400.0,0.00027397,5]
[381509625,1756241490704,-400.7695,0.00027397,5]
[381509626,1756241490713,-400.0,0.00027397,5]
[381509627,1756241490722,-662.21,0.00027397,5]
[381509628,1756241490731,-1034.73,0.00027397,5]
[381509629,1756241490741,-400.0,0.00027397,5]
[381509630,1756241490750,-400.0,0.00027397,5]
[381509631,1756241490759,-400.0,0.00027397,5]
[381509632,1756241490769,-1969.43,0.00027397,5]
[381509633,1756241490778,-1077.22,0.00027397,5]
[381509634,1756241490787,-400.0,0.00027397,5]
[381509635,1756241490797,-530.70808298,0.00027397,5]
[381509636,1756241490806,-400.0,0.00027397,5]
[381509637,1756241490816,-726.54,0.00027397,5]
[381509638,1756241490825,-400.0,0.00027397,5]
[381509639,1756241490834,-680.3,0.00027397,5]
[381509640,1756241490843,-857.8,0.00027397,5]
[381509641,1756241490853,-500.0,0.00027397,5]
[381509642,1756241490862,-1620.25,0.00027397,5]
[381509643,1756241490871,-506.4,0.00027397,5]
[381509644,1756241490881,-500.0,0.00027397,5]
[381509645,1756241490890,-500.0,0.00027397,5]
[381509646,1756241490900,-980.14,0.00027397,5]
[381509647,1756241490910,-500.0,0.00027397,5]
[381509648,1756241490919,-400.0,0.00027397,5]
[381509649,1756241490928,-400.0,0.00027397,5]
[381509650,1756241490937,-941.62,0.00027397,5]
[381509651,1756241490947,-500.0,0.00027397,5]
[381509652,1756241490956,-500.0,0.00027397,5]
[381509653,1756241490966,-500.0,0.00027397,5]
[381509654,1756241490975,-400.0,0.00027397,5]
[381509655,1756241490984,-400.0,0.00027397,5]
[381509656,1756241490994,-500.0,0.00027397,5]
[381509657,1756241491004,-199.24012142,0.00027397,5]
[381509658,1756241491013,-567.37,0.00027397,5]
[381509659,1756241491023,-846.4,0.00027397,5]
[381509660,1756241491032,-534.4,0.00027397,5]
[381509661,1756241491042,-497.96,0.00027397,5]
[381509662,1756241491052,-400.0,0.00027397,5]
[381509663,1756241491061,-400.0,0.00027397,5]
[381509664,1756241491071,-1093.43,0.00027397,5]
[381509665,1756241491081,-400.0,0.00027397,5]
[381509666,1756241491091,-1072.08,0.00027397,5]
[381509667,1756241491100,-826.66,0.00027397,5]
[381509668,1756241491110,-1118.21,0.00027397,5]
[381509669,1756241491119,-623.27,0.00027397,5]
[381509670,1756241491128,-569.35,0.00027397,5]
[381509671,1756241491137,-936.92,0.00027397,5]
[381509672,1756241491147,-635.4,0.00027397,5]
[381509673,1756241491156,-603.02,0.00027397,5]
[381509674,1756241491165,-599.94,0.00027397,5]
[381509675,1756241491174,-691.38,0.00027397,5]
[381509676,1756241491183,-400.0,0.00027397,5]
[381509677,1756241491193,-428.09,0.00027397,5]
[381509678,1756241491202,-400.0,0.00027397,5]
[381509679,1756241491211,-1015.37,0.00027397,5]
[381509680,1756241491220,-400.0,0.00027397,5]
[381509681,1756241491229,-400.0,0.00027397,5]
[381509682,1756241491239,-945.71,0.00027397,5]
[381509683,1756241491248,-1029.74,0.00027397,5]
[381509684,1756241491257,-524.51,0.00027397,5]
[381509685,1756241491267,-400.0,0.00027397,5]
[381509686,1756241491276,-400.0,0.00027397,5]
[381509687,1756241491285,-400.0,0.00027397,5]
[381509688,1756241491295,-400.0,0.00027397,5]
[381509689,1756241491306,-614.98,0.00027397,5]
[381509690,1756241491316,-400.0,0.00027397,5]
[381509691,1756241491325,-400.0,0.00027397,5]
[381509692,1756241491334,-400.0,0.00027397,5]
[381509693,1756241491343,-400.0,0.00027397,5]
[381509694,1756241491352,-1279.45,0.00027397,5]
[381509695,1756241491361,-1154.1,0.00027397,5]
[381509696,1756241491371,-400.0,0.00027397,5]
[381509697,1756241491380,-537.23,0.00027397,5]
[381509698,1756241491390,-400.0,0.00027397,5]
[381509699,1756241491399,-559.0,0.00027397,5]
[381509700,1756241491408,-639.85,0.00027397,5]
[381509701,1756241491418,-400.0,0.00027397,5]
[381509702,1756241491427,-400.0,0.00027397,5]
[381509703,1756241491437,-400.0,0.00027397,5]
[381509704,1756241491446,-400.0,0.00027397,5]
[381509705,1756241491455,-1117.43,0.00027397,5]
[381509706,1756241491465,-406.12,0.00027397,5]
[381509707,1756241491474,-710.8,0.00027397,5]
[381509708,1756241491483,-1261.86,0.00027397,5]
[381509709,1756241491493,-571.67,0.00027397,5]
[381509710,1756241491503,-400.0,0.00027397,5]
[381509711,1756241491511,-400.0,0.00027397,5]
[381509712,1756241491521,-1104.06,0.00027397,5]
[381509713,1756241491530,-400.0,0.00027397,5]
[381509714,1756241491539,-623.4,0.00027397,5]
[381509715,1756241491548,-400.0,0.00027397,5]
[381509716,1756241491558,-400.0,0.00027397,5]
[381509717,1756241491567,-400.0,0.00027397,5]
[381509718,1756241491577,-1416.77,0.00027397,5]
[381509719,1756241491586,-930.74,0.00027397,5]
[381509720,1756241491595,-1054.6,0.00027397,5]
[381509721,1756241491604,-472.47,0.00027397,5]
[381509722,1756241491613,-400.0,0.00027397,5]
[381509723,1756241491623,-500.0,0.00027397,5]
[381509724,1756241491631,-400.0,0.00027397,5]
[381509725,1756241491642,-500.0,0.00027397,5]
[381509726,1756241491653,-3683.58,0.00027397,5]
[381509727,1756241491664,-1382.97,0.00027397,5]
[381509728,1756241491674,-641.52,0.00027397,5]
[381509729,1756241491684,-1315.85,0.00027397,5]
[381509730,1756241491694,-910.96,0.00027397,5]
[381509731,1756241491704,-400.0,0.00027397,5]
[381509732,1756241491714,-1338.94,0.00027397,5]
[381509733,1756241491723,-563.36,0.00027397,5]
[381509734,1756241491741,-421.16915708,0.00027397,5]
[381509735,1756241491751,-400.0,0.00027397,5]
[381509736,1756241491761,-400.0,0.00027397,5]
[381509737,1756241491771,-733.69,0.00027397,5]
[381509738,1756241491780,-400.61445976,0.00027397,5]
[381509739,1756241491790,-450.5,0.00027397,5]
[381509740,1756241491799,-400.0,0.00027397,5]
[381509741,1756241491810,-400.0,0.00027397,5]
[381509742,1756241491820,-698.14,0.00027397,5]
[381509743,1756241491830,-400.0,0.00027397,5]
[381509744,1756241491839,-894.69,0.00027397,5]
[381509745,1756241491848,-400.0,0.00027397,5]
[381509746,1756241491858,-532.53685763,0.00027397,5]
[381509747,1756241491868,-400.0,0.00027397,5]
[381509748,1756241491878,-815.18,0.00027397,5]
[381509749,1756241491887,-745.74,0.00027397,5]
[381509750,1756241491897,-1030.58,0.00027397,5]
[381509751,1756241491906,-689.42,0.00027397,5]
[381509752,1756241491915,-1133.8,0.00027397,5]
[381509753,1756241491925,-526.16,0.00027397,5]
[381509754,1756241491934,-400.0,0.00027397,5]
[381509755,1756241491945,-500.0,0.00027397,5]
[381509756,1756241491954,-400.0,0.00027397,5]
[381509757,1756241491963,-500.0,0.00027397,5]
[381509758,1756241491973,-444.92,0.00027397,5]
[381509759,1756241491984,-500.0,0.00027397,5]
[381509760,1756241491994,-425.88,0.00027397,5]
[381509761,1756241492004,-779.26,0.00027397,5]
[381509762,1756241492117,-590.63,0.00027397,5]
[381509763,1756241492127,-500.0,0.00027397,5]
[381509764,1756241492138,-500.0,0.00027397,5]
[381509765,1756241492149,-500.0,0.00027397,5]
[381509766,1756241492159,-400.0,0.00027397,5]
[381509767,1756241492168,-500.0,0.00027397,5]
[381509768,1756241492177,-373.447253,0.00027397,5]
[381509769,1756241492186,-400.0,0.00027397,5]
[381509770,1756241492195,-1316.01,0.00027397,5]
[381509771,1756241492204,-656.29,0.00027397,5]
[381509772,1756241492214,-1681.38,0.00027397,5]
[381509773,1756241492223,-400.0,0.00027397,5]
[381509774,1756241492232,-520.39,0.00027397,5]
[381509775,1756241492241,-490.0,0.00027397,5]
[381509776,1756241492250,-490.0,0.00027397,5]
[381509777,1756241492259,-490.0,0.00027397,5]
[381509778,1756241492269,-849.38,0.00027397,5]
[381509779,1756241492278,-801.99,0.00027397,5]
[381509780,1756241492287,-1126.36,0.00027397,5]
[381509781,1756241492296,-400.0,0.00027397,5]
[381509782,1756241492305,-400.0,0.00027397,5]
[381509783,1756241492314,-580.22,0.00027397,5]
[381509784,1756241492323,-400.0,0.00027397,5]
[381509785,1756241492333,-451.13,0.00027397,5]
[381509786,1756241492342,-466.35,0.00027397,5]
[381509787,1756241492351,-698.14,0.00027397,5]
[381509788,1756241492360,-1159.46,0.00027397,5]
[381509789,1756241492369,-400.0,0.00027397,5]
[381509790,1756241492379,-400.0,0.00027397,5]
[381509791,1756241492388,-581.1,0.00027397,5]
[381509792,1756241492397,-400.0,0.00027397,5]
[381509793,1756241492406,-487.52,0.00027397,5]
[381509794,1756241492416,-400.0,0.00027397,5]
[381509795,1756241492424,-764.62,0.00027397,5]